bitfinex/quotes_BTCUSD_20250512
["timestamp","ask_amount","ask_price","bid_price","bid_amount"]
[1747067164591,1.4664312,102940.0,102930.0,0.00048198]
[1747067164834,1.4815312,102940.0,102930.0,0.00048198]
[1747067165047,1.4865312,102940.0,102930.0,0.00048198]
[1747067165439,1.5017312,102940.0,102930.0,0.00048198]
[1747067167382,1.4714312,102940.0,102930.0,0.00048198]
[1747067167585,1.1714312,102940.0,102930.0,0.00048198]
[1747067170723,1.17128425,102940.0,102930.0,0.00048198]
[1747067170945,1.07128425,102940.0,102930.0,0.00048198]
[1747067171157,1.09071237,102940.0,102930.0,0.00048198]
[1747067171567,1.18075237,102940.0,102930.0,0.03268198]
[1747067171763,1.39047237,102940.0,102930.0,0.03268198]
[1747067172344,1.39047237,102940.0,102930.0,0.01628198]
[1747067172667,1.39047237,102940.0,102930.0,0.03158198]
[1747067174422,1.39047237,102940.0,102930.0,0.00048198]
[1747067174640,1.40577237,102940.0,102930.0,0.00048198]
[1747067174860,1.42117237,102940.0,102930.0,0.00048198]
[1747067176862,0.88075237,102940.0,102930.0,0.00048198]
[1747067177062,1.27011237,102940.0,102930.0,0.03278198]
[1747067177464,1.47999237,102940.0,102930.0,0.03278198]
[1747067178107,1.68955237,102940.0,102930.0,0.03278198]
[1747067179084,1.38955237,102940.0,102930.0,0.03278198]
[1747067180720,1.38955237,102940.0,102930.0,0.00048198]
[1747067181214,1.41683842,102940.0,102930.0,0.00048198]
[1747067181943,1.41183842,102940.0,102930.0,0.00048198]
[1747067182358,1.41483842,102940.0,102930.0,0.00048198]
[1747067182754,1.41283842,102940.0,102930.0,0.00048198]
[1747067182933,1.41583842,102940.0,102930.0,0.00048198]
[1747067183498,1.44853842,102940.0,102930.0,0.00048198]
[1747067184210,2.21932766,102940.0,102930.0,0.00048198]
[1747067187822,1.90932766,102940.0,102930.0,0.00048198]
[1747067188105,2.3457672,102940.0,102930.0,0.00048198]
[1747067188279,2.25932766,102940.0,102930.0,0.00048198]
[1747067190387,2.24932766,102940.0,102930.0,0.00048198]
[1747067192526,2.25932766,102940.0,102930.0,0.00048198]
[1747067192770,1.74359757,102940.0,102930.0,0.00048198]
[1747067193228,1.75813842,102940.0,102930.0,0.00048198]
[1747067193461,1.32455757,102940.0,102930.0,0.00048198]
[1747067193683,1.40089757,102940.0,102930.0,0.00048198]
[1747067193939,0.68185757,102940.0,102930.0,0.03168198]
[1747067194187,1.37357152,102940.0,102930.0,0.03168198]
[1747067194419,1.37357152,102940.0,102930.0,0.49247122]
[1747067194656,1.16445152,102940.0,102930.0,0.83247122]
[1747067194888,1.37965563,102940.0,102930.0,0.37168198]
[1747067195364,1.37665563,102940.0,102930.0,0.37168198]
[1747067198241,1.07665563,102940.0,102930.0,0.37168198]
[1747067198448,1.07653563,102940.0,102930.0,1.03649318]
[1747067198855,1.05710751,102940.0,102930.0,0.83247122]
[1747067199542,1.0480234,102940.0,102930.0,0.83247122]
[1747067199788,1.0480234,102940.0,102930.0,0.37168198]
[1747067200011,1.0480234,102940.0,102930.0,0.83247122]
[1747067200214,1.0480234,102940.0,102930.0,1.03649327]
[1747067200427,1.0577376,102940.0,102930.0,1.05592318]
[1747067200636,1.14809035,102940.0,102930.0,1.03649327]
[1747067200833,1.14809035,102940.0,102930.0,1.04620842]
[1747067201046,1.14809035,102940.0,102930.0,1.05592347]
[1747067201459,1.14809035,102940.0,102930.0,1.06563843]
[1747067201939,1.14809035,102940.0,102930.0,1.05592347]
[1747067202764,0.93917035,102940.0,102930.0,1.05592347]
[1747067203420,0.92945643,102940.0,102930.0,1.04620842]
[1747067203973,0.91974223,102940.0,102930.0,1.03649327]
[1747067204196,1.12858223,102940.0,102930.0,1.03649327]
[1747067204397,0.92945643,102940.0,102930.0,1.04620842]
[1747067204601,0.92945643,102940.0,102930.0,1.05592347]
[1747067204798,0.74488242,102940.0,102930.0,1.0753531]
[1747067205006,0.74488186,102940.0,102930.0,1.0753531]
[1747067205208,0.22930737,102940.0,102930.0,1.0753531]
[1747067205429,0.24873521,102940.0,102930.0,1.0753531]
[1747067206646,0.25844932,102940.0,102930.0,1.0753531]
[1747067206916,0.24873521,102940.0,102930.0,1.0753531]
[1747067207124,0.40328343,102960.0,102950.0,0.032]
[1747067207362,0.70785773,102960.0,102950.0,0.49278924]
[1747067208570,0.71085773,102960.0,102950.0,0.49278924]
[1747067209210,0.71385773,102960.0,102950.0,0.49278924]
[1747067209411,0.71385773,102960.0,102950.0,0.50349853]
[1747067209806,0.71385773,102960.0,102950.0,0.70748094]
[1747067209984,1.01385773,102960.0,102950.0,0.70748094]
[1747067210187,0.71385773,102960.0,102950.0,0.70748094]
[1747067210620,1.01385773,102960.0,102950.0,0.70748094]
[1747067211057,1.01385773,102960.0,102950.0,0.23697835]
[1747067211259,1.01385773,102960.0,102950.0,0.70748104]
[1747067211778,1.01385773,102960.0,102950.0,0.71719439]
[1747067212009,1.01085773,102960.0,102950.0,0.71719439]
[1747067212241,1.01085773,102960.0,102950.0,0.71819439]
[1747067212737,1.00785773,102960.0,102950.0,0.26711841]
[1747067212978,1.00785773,102960.0,102950.0,0.72790765]
[1747067213811,1.00785773,102960.0,102950.0,0.72890765]
[1747067215321,0.79909773,102960.0,102950.0,0.72890765]
[1747067215496,0.79909773,102960.0,102950.0,0.71919439]
[1747067215826,0.79909773,102960.0,102950.0,0.73344275]
[1747067216546,0.79909773,102960.0,102950.0,0.7237294]
[1747067217177,0.79909773,102960.0,102950.0,0.26294016]
[1747067217379,0.79909773,102960.0,102950.0,0.7237294]
[1747067217582,1.00749773,102960.0,102950.0,0.7237294]
[1747067217782,0.3048143,102960.0,102950.0,0.7237294]
[1747067217985,0.31452614,102960.0,102950.0,0.75286861]
[1747067218209,0.32423808,102960.0,102950.0,0.75286861]
[1747067218473,0.33395021,102960.0,102950.0,0.75286861]
[1747067218614,0.52820088,102960.0,102950.0,0.7237293]
[1747067218817,0.52820088,102960.0,102950.0,0.73344247]
[1747067219016,0.51848894,102960.0,102950.0,0.73344247]
[1747067219398,0.51848894,102960.0,102950.0,0.74315554]
[1747067219925,0.32423875,102960.0,102950.0,0.75286833]
[1747067220811,0.52820135,102960.0,102950.0,0.75286833]
[1747067221033,0.33395116,102960.0,102950.0,0.75286833]
[1747067221274,0.32423827,102960.0,102950.0,0.75286833]
[1747067221520,0.33395059,102960.0,102950.0,0.75286833]
[1747067221751,0.12499059,102960.0,102950.0,0.75286833]
[1747067222021,0.134703,102960.0,102950.0,0.75286833]
[1747067222724,0.343623,102960.0,102950.0,0.75286833]
[1747067222921,0.53787319,102960.0,102950.0,0.75286833]
[1747067223344,0.343623,102960.0,102950.0,0.75286833]
[1747067223559,0.33391059,102960.0,102950.0,1.09286833]
[1747067223787,0.53787319,102960.0,102950.0,1.09286833]
[1747067224014,0.33391059,102960.0,102950.0,1.09286833]
[1747067225128,0.20892,102960.0,102950.0,1.09286833]
[1747067225374,0.00977071,102970.0,102960.0,0.59488657]
[1747067225598,0.0097709,102970.0,102960.0,1.52617307]
[1747067225866,6e-05,102970.0,102960.0,1.52617307]
[1747067226297,0.25638729,102980.0,102970.0,0.59536487]
[1747067226507,0.33282072,102980.0,102970.0,1.05615411]
[1747067226715,0.35224149,102980.0,102970.0,1.05615411]
[1747067226847,0.36195201,102980.0,102970.0,1.05615411]
[1747067227273,0.32311067,102980.0,102970.0,1.05615411]
[1747067227487,0.35224102,102980.0,102970.0,1.0563009]
[1747067227701,0.35287759,102980.0,102970.0,1.0563009]
[1747067227949,0.34316706,102980.0,102970.0,1.0563009]
[1747067228148,0.33545692,102980.0,102970.0,1.0563009]
[1747067228764,0.34716726,102980.0,102970.0,1.0563009]
[1747067229144,0.004,102980.0,102970.0,3.4123009]
[1747067229350,0.004,102980.0,102970.0,2.4301459]
[1747067230421,0.02172034,102990.0,102980.0,0.59484318]
[1747067230626,0.01265442,102990.0,102980.0,3.74761744]
[1747067230888,0.01265442,102990.0,102980.0,4.12773844]
[1747067231100,0.01265442,102990.0,102980.0,3.74574644]
[1747067231331,0.01265442,102990.0,102980.0,2.33903044]
[1747067231537,0.01265442,102990.0,102980.0,2.18751244]
[1747067232003,0.01265442,102990.0,102980.0,2.19151244]
[1747067232703,0.01265442,102990.0,102980.0,2.19551244]
[1747067233714,0.02236344,102990.0,102980.0,1.66469944]
[1747067233945,0.01265442,102990.0,102980.0,1.66469944]
[1747067234888,0.02236344,102990.0,102980.0,1.66469944]
[1747067235100,0.02236325,102990.0,102980.0,1.66469944]
[1747067235357,0.01265442,102990.0,102980.0,1.66469944]
[1747067242800,0.34153934,102990.0,102980.0,0.23134375]
[1747067243026,0.76351051,102990.0,102980.0,0.24105399]
[1747067243251,0.7696014,102990.0,102980.0,0.56163341]
[1747067243477,0.77864878,102990.0,102980.0,0.57134375]
[1747067243921,0.77864878,102990.0,102980.0,0.58105399]
[1747067244442,0.54294521,102990.0,102980.0,0.59076404]
[1747067244680,0.5623639,102990.0,102980.0,1.06755272]
[1747067245940,0.57207273,102990.0,102980.0,1.06755272]
[1747067246565,0.57207273,102990.0,102980.0,1.05155272]
[1747067248189,0.56236324,102990.0,102980.0,1.05155272]
[1747067248412,0.57207273,102990.0,102980.0,1.06695272]
[1747067249257,0.56236324,102990.0,102980.0,1.06695272]
[1747067249472,0.57207273,102990.0,102980.0,1.06695272]
[1747067249674,0.57207263,102990.0,102980.0,1.06695272]
[1747067250022,0.58178212,102990.0,102980.0,1.06695272]
[1747067251026,0.37414212,102990.0,102980.0,1.08355272]
[1747067251228,0.36443273,102990.0,102980.0,1.08355272]
[1747067251428,0.36443263,102990.0,102980.0,1.08355272]
[1747067251632,0.37414212,102990.0,102980.0,1.08355272]
[1747067251847,0.36443263,102990.0,102980.0,1.08355272]
[1747067252041,0.37414212,102990.0,102980.0,1.08355272]
[1747067252631,0.37414212,102990.0,102980.0,1.06695272]
[1747067253052,0.37414287,102990.0,102980.0,1.06695272]
[1747067256239,0.37414287,102990.0,102980.0,1.05155272]
[1747067256598,0.56833648,102990.0,102980.0,1.05155272]
[1747067256843,0.57050878,102990.0,102980.0,0.348]
[1747067257045,0.77774878,102990.0,102980.0,0.348]
[1747067257248,1.07774878,102990.0,102980.0,0.348]
[1747067257426,0.77774878,102990.0,102980.0,0.56163342]
[1747067257866,0.76803929,102990.0,102980.0,0.55763342]
[1747067258066,0.76803929,102990.0,102980.0,0.5576336]
[1747067258267,0.73673929,102990.0,102980.0,1.02813308]
[1747067258408,0.74644859,102990.0,102980.0,1.04363308]
[1747067258612,0.74644859,102990.0,102980.0,1.04063308]
[1747067259031,0.74644859,102990.0,102980.0,1.02713308]
[1747067259242,0.55225498,102990.0,102980.0,1.03684313]
[1747067259452,0.561964,102990.0,102980.0,1.06205309]
[1747067259709,0.56196391,102990.0,102980.0,1.06205309]
[1747067260216,0.7658672,102990.0,102980.0,1.04655309]
[1747067260439,0.7658672,102990.0,102980.0,0.57605389]
[1747067260584,0.7658672,102990.0,102980.0,1.03684313]
[1747067261932,0.7658672,102990.0,102980.0,1.01742284]
[1747067262108,0.75615818,102990.0,102980.0,0.56634403]
[1747067262308,0.75615818,102990.0,102980.0,0.57605437]
[1747067262934,0.75615818,102990.0,102980.0,0.58576461]
[1747067263134,0.75615818,102990.0,102980.0,0.58576414]
[1747067264158,0.55225442,102990.0,102980.0,0.60116358]
[1747067264332,0.7658671,102990.0,102980.0,1.07825282]
[1747067264528,0.1175561,102990.0,102980.0,1.07825282]
[1747067264764,0.0217018,102990.0,102980.0,1.96820382]
[1747067265211,0.02236334,102990.0,102980.0,1.96820382]
[1747067265724,0.01265442,102990.0,102980.0,1.96820382]
[1747067265931,0.03207227,102990.0,102980.0,1.78280882]
[1747067266142,0.03207217,102990.0,102980.0,1.78280882]
[1747067266774,0.03207217,102990.0,102980.0,1.54319782]
[1747067269759,0.04178119,102990.0,102980.0,1.36825182]
[1747067270491,0.03207217,102990.0,102980.0,1.36825182]
[1747067271087,0.04178128,102990.0,102980.0,1.28468682]
[1747067271296,0.03207217,102990.0,102980.0,1.28968682]
[1747067271848,0.03207217,102990.0,102980.0,1.28768682]
[1747067272050,0.03207217,102990.0,102980.0,1.29168682]
[1747067272693,0.01265442,102990.0,102980.0,1.29168682]
[1747067273913,0.02236325,102990.0,102980.0,1.29168682]
[1747067274319,0.02236325,102990.0,102980.0,0.83089758]
[1747067274491,0.02236325,102990.0,102980.0,1.29168682]
[1747067274692,0.02236325,102990.0,102980.0,1.08425282]
[1747067274893,0.02236325,102990.0,102980.0,2.61485482]
[1747067275328,0.01265442,102990.0,102980.0,2.61485482]
[1747067275529,0.02236325,102990.0,102980.0,2.61485482]
[1747067276164,0.01265442,102990.0,102980.0,2.61485482]
[1747067276472,0.01265442,102990.0,102980.0,2.34481482]
[1747067276672,0.02236325,102990.0,102980.0,2.15307782]
[1747067277645,0.03207227,102990.0,102980.0,2.15307782]
[1747067277850,0.03207227,102990.0,102980.0,1.53652482]
[1747067278251,0.04178147,102990.0,102980.0,1.40402882]
[1747067278624,0.04178147,102990.0,102980.0,1.41902882]
[1747067280197,0.03207227,102990.0,102980.0,1.41902882]
[1747067280616,0.03207227,102990.0,102980.0,1.40402882]
[1747067280834,0.04178138,102990.0,102980.0,1.40402882]
[1747067281996,0.03207227,102990.0,102980.0,1.43432882]
[1747067284128,0.04178138,102990.0,102980.0,1.43432882]
[1747067284760,0.04178138,102990.0,102980.0,1.41902882]
[1747067286633,0.7779306,102990.0,102980.0,0.009]
[1747067286861,1.0682214,102990.0,102980.0,0.009]
[1747067287076,0.67825172,102990.0,102980.0,0.009]
[1747067287283,1.39185172,102990.0,102980.0,0.009]
[1747067287861,1.39185172,102990.0,102980.0,0.005]
[1747067288088,0.19421246,102980.0,102970.0,1.00487588]
[1747067288303,0.29006676,102980.0,102970.0,1.01458716]
[1747067288513,0.51828416,102980.0,102970.0,1.01458716]
[1747067288670,0.54741479,102980.0,102970.0,1.03400924]
[1747067288878,0.55712531,102980.0,102970.0,1.03400924]
[1747067289497,0.75133777,102980.0,102970.0,1.03400924]
[1747067290701,0.73191786,102980.0,102970.0,1.01658716]
[1747067290886,0.73191786,102980.0,102970.0,1.02629834]
[1747067291090,0.73191786,102980.0,102970.0,1.03600943]
[1747067291558,0.76451786,102980.0,102970.0,1.03600943]
[1747067291907,0.75812848,102980.0,102970.0,1.04572043]
[1747067292315,0.74162848,102980.0,102970.0,1.04572043]
[1747067292929,0.74162848,102980.0,102970.0,0.57522019]
[1747067293108,0.74162848,102980.0,102970.0,1.03600943]
[1747067293953,0.74162848,102980.0,102970.0,1.04572043]
[1747067294178,0.73191786,102980.0,102970.0,1.04571996]
[1747067294644,0.73191786,102980.0,102970.0,1.02629806]
[1747067295344,0.73191786,102980.0,102970.0,0.56550882]
[1747067295556,0.76371786,102980.0,102970.0,0.56550882]
[1747067296392,0.76371786,102980.0,102970.0,0.55579773]
[1747067296575,0.76371786,102980.0,102970.0,0.56550882]
[1747067297405,0.74831786,102980.0,102970.0,0.56550882]
[1747067297610,0.55410465,102980.0,102970.0,0.57521982]
[1747067297770,0.55410465,102980.0,102970.0,0.58493072]
[1747067298394,0.53770465,102980.0,102970.0,0.57521982]
[1747067298598,0.52799431,102980.0,102970.0,0.57521982]
[1747067298838,0.53770445,102980.0,102970.0,1.04571996]
[1747067299457,0.26056334,102990.0,102980.0,0.22334318]
[1747067299629,0.37583605,102990.0,102980.0,0.69384247]
[1747067299833,0.36043605,102990.0,102980.0,0.69384247]
[1747067300084,0.33432675,102990.0,102980.0,0.69384247]
[1747067300289,0.33432666,102990.0,102980.0,0.69384247]
[1747067300706,0.22876325,102990.0,102980.0,0.70934247]
[1747067300921,0.23847217,102990.0,102980.0,0.72594247]
[1747067301611,0.22876325,102990.0,102980.0,0.72594247]
[1747067301747,0.01265442,102990.0,102980.0,1.06594247]
[1747067302369,0.01265442,102990.0,102980.0,2.43638647]
[1747067302995,0.01265442,102990.0,102980.0,2.41017447]
[1747067303605,0.01265442,102990.0,102980.0,1.06594247]
[1747067303803,0.01265442,102990.0,102980.0,1.07194247]
[1747067304026,0.01265442,102990.0,102980.0,2.02709147]
[1747067306671,0.00388665,102990.0,102980.0,2.02409147]
[1747067306880,0.00388665,102990.0,102980.0,2.02909147]
[1747067307292,0.00388665,102990.0,102980.0,2.43649147]
[1747067307711,0.00388665,102990.0,102980.0,2.84049147]
[1747067309425,0.01873935,103000.0,102990.0,0.59582151]
[1747067309628,0.01873935,103000.0,102990.0,4.55626026]
[1747067309842,0.01873935,103000.0,102990.0,4.21092526]
[1747067310044,0.01873935,103000.0,102990.0,3.33668002]
[1747067310278,0.01873935,103000.0,102990.0,3.73668002]
[1747067310733,0.01873935,103000.0,102990.0,3.73968002]
[1747067310963,0.01873935,103000.0,102990.0,3.74268002]
[1747067311551,1e-08,103000.0,102990.0,3.74268002]
[1747067311877,0.46886344,103030.0,103020.0,0.55355029]
[1747067312027,0.56471774,103030.0,103020.0,1.01433953]
[1747067312262,0.77039774,103030.0,103020.0,1.01433953]
[1747067312631,0.76133149,103030.0,103020.0,1.024046]
[1747067313107,0.76133149,103030.0,103020.0,1.01448632]
[1747067313563,0.75162596,103030.0,103020.0,0.99507309]
[1747067313709,0.74192015,103030.0,103020.0,0.34014679]
[1747067313925,0.74192015,103030.0,103020.0,0.35040418]
[1747067314851,0.74192015,103030.0,103020.0,0.01040418]
[1747067315014,0.75097481,103030.0,103020.0,0.01040418]
[1747067315212,1.36551566,103030.0,103020.0,0.01040418]
[1747067315418,1.36551566,103030.0,103020.0,0.00014679]
[1747067319192,1.36551566,103030.0,103020.0,0.01472949]
[1747067319405,1.36551566,103030.0,103020.0,0.00014679]
[1747067321011,1.78487566,103030.0,103020.0,0.00014679]
[1747067322808,1.48487566,103030.0,103020.0,0.00014679]
[1747067323861,1.05829481,103030.0,103020.0,0.80093603]
[1747067324081,0.33893481,103030.0,103020.0,0.34014679]
[1747067324284,0.74969481,103030.0,103020.0,0.34014679]
[1747067325093,0.33893481,103030.0,103020.0,0.34014679]
[1747067325276,0.74969481,103030.0,103020.0,0.34014679]
[1747067325473,0.33893481,103030.0,103020.0,0.34014679]
[1747067325728,0.74965481,103030.0,103020.0,0.34014679]
[1747067327385,0.73455481,103030.0,103020.0,0.34014679]
[1747067328174,0.51417481,103030.0,103020.0,1.00477984]
[1747067328370,0.71937481,103030.0,103020.0,0.99507309]
[1747067328567,0.71937481,103030.0,103020.0,0.46078924]
[1747067328814,0.71937481,103030.0,103010.0,0.74995043]
[1747067328986,0.71937481,103030.0,103010.0,0.75009728]
[1747067329203,0.71937481,103030.0,103020.0,0.46078924]
[1747067330185,0.00970666,103020.0,103010.0,0.74039053]
[1747067330589,0.00970666,103020.0,103010.0,1.08039053]
[1747067331135,0.00970657,103020.0,103010.0,1.08039053]
[1747067331356,0.70053424,103030.0,103020.0,0.20384353]
[1747067331553,0.70053424,103030.0,103020.0,0.80078924]
[1747067332122,0.70053424,103030.0,103020.0,1.0143399]
[1747067332691,0.70053424,103030.0,103020.0,1.03914647]
[1747067332692,0.49541424,103030.0,103020.0,1.03914647]
[1747067332930,0.70049424,103030.0,103020.0,1.0294399]
[1747067333305,0.70049424,103030.0,103020.0,0.82559609]
[1747067333514,0.70049424,103030.0,103020.0,1.0294399]
[1747067333716,0.70049424,103030.0,103020.0,0.81588924]
[1747067333893,0.70957116,103030.0,103020.0,0.81588924]
[1747067334098,0.70957116,103030.0,103020.0,1.01963315]
[1747067334298,0.70957116,103030.0,103020.0,0.81578924]
[1747067335878,0.70957116,103030.0,103020.0,0.80078924]
[1747067336298,0.70957116,103030.0,103020.0,0.9949263]
[1747067336503,0.70957116,103030.0,103020.0,0.80078924]
[1747067336882,0.70957116,103030.0,103020.0,0.9949263]
[1747067337098,0.70945116,103030.0,103020.0,0.9949263]
[1747067337303,0.70945116,103030.0,103020.0,0.80078924]
[1747067337506,0.70945116,103030.0,103020.0,0.34]
[1747067340671,0.75629201,103030.0,103020.0,0.34]
[1747067340892,1.05629201,103030.0,103020.0,0.34]
[1747067342968,1.05629201,103030.0,103010.0,0.00014685]
[1747067342969,0.54928457,103020.0,103010.0,0.00014685]
[1747067343211,1.05945887,103020.0,103010.0,0.00014685]
[1747067343931,1.06853579,103020.0,103010.0,0.00014685]
[1747067345974,1.09576142,103020.0,103010.0,0.00014685]
[1747067346424,1.55655066,103020.0,103010.0,0.00014685]
[1747067346668,1.09576142,103020.0,103010.0,0.00014685]
[1747067347107,1.27321579,103020.0,103010.0,0.00014685]
[1747067347363,1.47865579,103020.0,103010.0,0.00014685]
[1747067348980,1.17865579,103020.0,103010.0,0.00014685]
[1747067349454,1.27397579,103020.0,103010.0,0.00014685]
[1747067349688,1.17857579,103020.0,103010.0,0.00014685]
[1747067349955,1.47857579,103020.0,103010.0,0.00014685]
[1747067351529,1.06853579,103020.0,103010.0,0.00014685]
[1747067351769,1.47769579,103020.0,103010.0,0.00014685]
[1747067359839,1.14659579,103020.0,103010.0,0.00014685]
[1747067360054,0.94223579,103020.0,103010.0,0.00014685]
[1747067360276,1.14659579,103020.0,103010.0,0.00014685]
[1747067361568,0.94223579,103020.0,103010.0,0.00014685]
[1747067361787,1.44655579,103020.0,103010.0,0.00014685]
[1747067363473,1.43201494,103020.0,103010.0,0.00014685]
[1747067364051,1.22769494,103020.0,103010.0,0.34014685]
[1747067364250,1.43193494,103020.0,103010.0,0.34014685]
[1747067367507,1.02309494,103020.0,103010.0,0.37154685]
[1747067367717,1.43181494,103020.0,103010.0,0.37154685]
[1747067368912,1.43181494,103020.0,103010.0,0.34014685]
[1747067369315,1.43181494,103020.0,103010.0,0.35654685]
[1747067370627,1.43181494,103020.0,103010.0,0.34014685]
[1747067372187,1.46391494,103020.0,103010.0,0.34014685]
[1747067374539,1.44761494,103020.0,103010.0,0.34014685]
[1747067374914,1.43181494,103020.0,103010.0,0.34014685]
[1747067377552,1.46391494,103020.0,103010.0,0.34014685]
[1747067377965,1.47835339,103020.0,103010.0,0.34014685]
[1747067378168,1.47835339,103020.0,103010.0,0.00014685]
[1747067380919,0.92210828,103020.0,103010.0,0.41802975]
[1747067381122,1.12582828,103020.0,103010.0,0.87881899]
[1747067381433,1.12582828,103020.0,103010.0,0.34]
[1747067382279,0.71838828,103020.0,103010.0,0.34]
[1747067382407,1.12578828,103020.0,103010.0,0.34]
[1747067386378,1.12578828,103020.0,103010.0,0.08731449]
[1747067386593,0.1941559,103010.0,103000.0,0.27458504]
[1747067386795,0.2900102,103010.0,103000.0,0.73585626]
[1747067386993,0.13468357,103010.0,103000.0,0.74556433]
[1747067387193,0.32884023,103010.0,103000.0,0.74556433]
[1747067387496,0.33854802,103010.0,103000.0,0.74556433]
[1747067387730,0.33854802,103010.0,103000.0,0.74156433]
[1747067387928,0.30942569,103010.0,103000.0,0.02826535]
[1747067388138,0.30942569,103010.0,103000.0,0.01246535]
[1747067388450,0.30942569,103010.0,103000.0,0.35246535]
[1747067388796,0.30942569,103010.0,103000.0,0.01246535]
[1747067389169,0.31851219,103010.0,103000.0,0.01246535]
[1747067390158,0.31851219,103010.0,103000.0,0.35246535]
[1747067390569,0.36545304,103010.0,103000.0,0.01246535]
[1747067390790,0.96545304,103010.0,103000.0,0.01246535]
[1747067395756,0.96545304,103010.0,103000.0,0.00248198]
[1747067401245,0.95636654,103010.0,103000.0,0.00248198]
[1747067402987,0.81715578,103010.0,103000.0,0.00248198]
[1747067403185,1.12715578,103010.0,103000.0,0.00248198]
[1747067403411,1.15440365,103010.0,103000.0,0.00248198]
[1747067403660,1.58670365,103010.0,103000.0,0.00248198]
[1747067403866,1.58670365,103010.0,103000.0,0.00148198]
[1747067403867,1.59670365,103010.0,103000.0,0.00148198]
[1747067404331,1.04361441,103010.0,103000.0,0.00148198]
[1747067404560,0.68361441,103010.0,103000.0,0.00148198]
[1747067404765,1.53262569,103010.0,103000.0,0.80227122]
[1747067404966,1.73570569,103010.0,103000.0,0.80227122]
[1747067405168,1.73550569,103010.0,103000.0,0.34048198]
[1747067405576,1.74457505,103010.0,103000.0,0.34048198]
[1747067406208,1.47657505,103010.0,103000.0,0.00048198]
[1747067406409,1.7911159,103010.0,103000.0,0.00048198]
[1747067409604,1.2560359,103010.0,103000.0,0.34048198]
[1747067409822,1.44441505,103010.0,103000.0,0.81767122]
[1747067410254,1.44441505,103010.0,103000.0,0.35688198]
[1747067410685,1.44441505,103010.0,103000.0,0.34048198]
[1747067411959,1.4589559,103010.0,103000.0,0.34048198]
[1747067412397,1.4910559,103010.0,103000.0,0.34048198]
[1747067412826,1.4910559,103010.0,103000.0,0.00048198]
[1747067413078,1.1900959,103010.0,103000.0,0.00033002]
[1747067414365,1.4900959,103010.0,103000.0,0.00033002]
[1747067414571,1.5551559,103010.0,103000.0,0.00033002]
[1747067414754,1.2551559,103010.0,103000.0,0.00033002]
[1747067414961,1.7579559,103010.0,103000.0,0.00033002]
[1747067416516,1.7579559,103010.0,103000.0,0.34033002]
[1747067419495,1.7579559,103010.0,103000.0,0.00033002]
[1747067420142,1.7897559,103010.0,103000.0,0.00033002]
[1747067420715,2.04639944,103010.0,103000.0,0.00033002]
[1747067420918,2.07362833,103010.0,103000.0,0.00033002]
[1747067421118,1.96870467,103010.0,103000.0,0.00033002]
[1747067421303,2.27870467,103010.0,103000.0,0.00033002]
[1747067422394,1.40223543,103010.0,103000.0,0.00033002]
[1747067422807,1.50775543,103010.0,103000.0,0.00033002]
[1747067422979,1.48052654,103010.0,103000.0,0.00033002]
[1747067423852,1.48960445,103010.0,103000.0,0.00033002]
[1747067428576,1.36888445,103010.0,103000.0,0.00033002]
[1747067428821,1.75764445,103010.0,103000.0,0.00033002]
[1747067435608,1.78774445,103010.0,103000.0,0.00033002]
[1747067435813,1.48774445,103010.0,103000.0,0.00033002]
[1747067441960,1.55444445,103010.0,103000.0,0.00033002]
[1747067442281,1.75660445,103010.0,103000.0,0.00033002]
[1747067443810,0.20388329,103000.0,102990.0,0.0324]
[1747067443996,0.29973759,103000.0,102990.0,0.03287646]
[1747067444366,0.3088155,103000.0,102990.0,0.03287646]
[1747067444573,0.5109355,103000.0,102990.0,0.03287646]
[1747067447718,0.5109355,103000.0,102990.0,0.37287646]
[1747067447921,0.5109355,103000.0,102990.0,0.34047646]
[1747067448330,0.55687635,103000.0,102990.0,0.00047646]
[1747067449003,0.85687635,103000.0,102990.0,0.00047646]
[1747067449219,0.84779844,103000.0,102990.0,0.00047646]
[1747067451224,0.84879844,103000.0,102990.0,0.00047646]
[1747067455218,0.64667844,103000.0,102990.0,0.00047646]
[1747067455440,0.90073759,103000.0,102990.0,0.00047646]
[1747067455649,1.72425759,103000.0,102990.0,0.00047646]
[1747067455851,1.73879844,103000.0,102990.0,0.00047646]
[1747067456062,1.73879844,103000.0,102990.0,0.01637646]
[1747067456269,1.72425759,103000.0,102990.0,0.35637646]
[1747067456476,1.72425759,103000.0,102990.0,0.8335657]
[1747067456675,1.74788267,103000.0,102990.0,0.8335657]
[1747067457473,1.44788267,103000.0,102990.0,0.37277646]
[1747067459041,1.23146182,103000.0,102990.0,0.37277646]
[1747067459241,1.43326182,103000.0,102990.0,0.37277646]
[1747067459443,0.60982182,103000.0,102990.0,0.8335657]
[1747067459642,1.01378182,103000.0,102990.0,0.8335657]
[1747067460690,1.01378182,103000.0,102990.0,0.00047646]
[1747067460888,1.04442267,103000.0,102990.0,0.00047646]
[1747067461079,1.06052267,103000.0,102990.0,0.00047646]
[1747067463357,0.75143844,103000.0,102990.0,0.00047646]
[1747067466113,1.31923844,103000.0,102990.0,0.34047646]
[1747067466565,1.30469759,103000.0,102990.0,0.34047646]
[1747067466791,1.30469759,103000.0,102990.0,0.24047646]
[1747067467284,0.2039031,102990.0,102980.0,0.49268924]
[1747067467505,0.2997574,102990.0,102980.0,0.49268924]
[1747067467952,0.30884088,102990.0,102980.0,0.49268924]
[1747067470061,0.51100088,102990.0,102980.0,0.49268924]
[1747067470280,0.30884088,102990.0,102980.0,0.49268924]
[1747067470499,0.71256088,102990.0,102980.0,0.49268924]
[1747067471935,0.52071027,102990.0,102980.0,1.03661222]
[1747067472348,0.51100088,102990.0,102980.0,1.04632265]
[1747067472646,0.51100088,102990.0,102980.0,1.03661222]
[1747067472863,0.5019174,102990.0,102980.0,1.03661222]
[1747067473256,0.5019174,102990.0,102980.0,1.0269017]
[1747067473469,0.5019174,102990.0,102980.0,1.03661232]
[1747067473850,0.5019174,102990.0,102980.0,0.83268924]
[1747067474634,0.5019174,102990.0,102980.0,0.3719]
[1747067475420,0.5019174,102990.0,102980.0,0.83268924]
[1747067477041,0.5019174,102990.0,102980.0,0.81728924]
[1747067479737,0.5019174,102990.0,102980.0,0.80078924]
[1747067480148,0.5019174,102990.0,102980.0,0.81688924]
[1747067480614,0.5019174,102990.0,102980.0,0.83208924]
[1747067483372,0.5019174,102990.0,102980.0,1.0263017]
[1747067483754,0.5019174,102990.0,102980.0,0.83208924]
[1747067483960,0.5019174,102990.0,102980.0,1.03601232]
[1747067484369,0.49220791,102990.0,102980.0,0.3561]
[1747067484574,0.49220791,102990.0,102980.0,0.34]
[1747067484782,0.49220791,102990.0,102980.0,0.80078924]
[1747067485971,0.50129604,102990.0,102980.0,0.80078924]
[1747067487999,0.50129604,102990.0,102980.0,0.81588924]
[1747067488189,0.50129604,102990.0,102980.0,1.04602266]
[1747067488389,0.50129604,102990.0,102980.0,1.04602284]
[1747067488586,0.50129604,102990.0,102980.0,1.03631232]
[1747067488798,0.50129604,102990.0,102980.0,0.83238924]
[1747067489153,0.49220791,102990.0,102980.0,0.83238924]
[1747067489656,0.49220791,102990.0,102980.0,1.03631232]
[1747067489985,0.49220791,102990.0,102980.0,0.84209986]